[Event "Early-Titled-Tuesday-Blitz-November-28-2023"]
[Site "Chess.com"]
[Date "2023.11.28"]
[Round "5"]
[White "The_Sherman_Variation"]
[Black "Anton_Demchenko"]
[Result "0-1"]
[WhiteElo "2518"]
[BlackElo "2954"]
[TimeControl "180+1"]
[EndTime "8:56:56 PST"]
[Termination "Anton_Demchenko won by resignation"]

1. d4 {[%clk 0:02:59.3]} 1... Nf6 {[%clk 0:02:57.9]} 2. c4 {[%clk 0:02:59.1]}
2... g6 {[%clk 0:02:58.2]} 3. Nc3 {[%clk 0:02:59.1]} 3... Bg7 {[%clk 0:02:58.8]}
4. e4 {[%clk 0:02:59.4]} 4... d6 {[%clk 0:02:59.5]} 5. Be2 {[%clk 0:02:58.7]}
5... O-O {[%clk 0:02:59.2]} 6. Be3 {[%clk 0:02:58.8]} 6... Na6 {[%clk
0:02:58.9]} 7. h4 {[%clk 0:02:56.8]} 7... h5 {[%clk 0:02:53.5]} 8. Nh3 {[%clk
0:02:53.5]} 8... c6 {[%clk 0:02:30.1]} 9. Ng5 {[%clk 0:02:49.6]} 9... Nc7 {[%clk
0:02:14.3]} 10. f3 {[%clk 0:02:19]} 10... b5 {[%clk 0:01:56.3]} 11. e5 {[%clk
0:02:11.7]} 11... b4 {[%clk 0:01:24.8]} 12. exf6 {[%clk 0:02:10.2]} 12... exf6
{[%clk 0:01:24.7]} 13. Nge4 {[%clk 0:01:59.6]} 13... bxc3 {[%clk 0:01:24.4]} 14.
Nxc3 {[%clk 0:02:00.5]} 14... Re8 {[%clk 0:01:22]} 15. Qd2 {[%clk 0:01:57.6]}
15... f5 {[%clk 0:01:19.7]} 16. Kf2 {[%clk 0:01:43.4]} 16... Rb8 {[%clk
0:01:13.5]} 17. Rad1 {[%clk 0:01:19.3]} 17... d5 {[%clk 0:01:04.2]} 18. c5
{[%clk 0:01:07]} 18... Ne6 {[%clk 0:01:03.7]} 19. g3 {[%clk 0:00:55.8]} 19...
Rb4 {[%clk 0:00:50.3]} 20. a3 {[%clk 0:00:48.9]} 20... Rxd4 {[%clk 0:00:49]} 21.
Bxd4 {[%clk 0:00:48.6]} 21... Bxd4+ {[%clk 0:00:45.7]} 22. Kg2 {[%clk
0:00:48.4]} 22... f4 {[%clk 0:00:40.2]} 23. Rhe1 {[%clk 0:00:38.5]} 23... fxg3
{[%clk 0:00:39.2]} 24. Bd3 {[%clk 0:00:27.2]} 24... Qxh4 {[%clk 0:00:38.1]} 25.
Rh1 {[%clk 0:00:24.4]} 25... Nf4+ {[%clk 0:00:38]} 0-1

[Event "Early-Titled-Tuesday-Blitz-November-28-2023"]
[Site "Chess.com"]
[Date "2023.11.28"]
[Round "5"]
[White "EvgenyBurmakin"]
[Black "djano"]
[Result "0-1"]
[WhiteElo "2403"]
[BlackElo "2571"]
[TimeControl "180+1"]
[EndTime "8:56:58 PST"]
[Termination "djano won by resignation"]

1. e4 {[%clk 0:03:00.9]} 1... c5 {[%clk 0:02:55.2]} 2. Nc3 {[%clk 0:03:00.7]}
2... Nc6 {[%clk 0:02:54]} 3. Bb5 {[%clk 0:03:01.1]} 3... Qa5 {[%clk 0:02:52.8]}
4. Bxc6 {[%clk 0:02:53]} 4... bxc6 {[%clk 0:02:53.3]} 5. f4 {[%clk 0:02:53]}
5... g6 {[%clk 0:02:52.5]} 6. Nf3 {[%clk 0:02:53]} 6... Ba6 {[%clk 0:02:52.2]}
7. d3 {[%clk 0:02:52.3]} 7... Bg7 {[%clk 0:02:52.3]} 8. Bd2 {[%clk 0:02:47.6]}
8... c4 {[%clk 0:02:50.4]} 9. d4 {[%clk 0:02:09.2]} 9... Qb6 {[%clk 0:02:44]}
10. Na4 {[%clk 0:02:05.3]} 10... Qb5 {[%clk 0:02:33.8]} 11. Nc5 {[%clk
0:01:51.3]} 11... Nf6 {[%clk 0:02:17.2]} 12. Nxa6 {[%clk 0:01:47.5]} 12... Qxa6
{[%clk 0:02:15.8]} 13. Qe2 {[%clk 0:01:46.3]} 13... Qb5 {[%clk 0:02:12.5]} 14.
Bc3 {[%clk 0:01:43.5]} 14... d5 {[%clk 0:02:09.3]} 15. Nd2 {[%clk 0:01:39.7]}
15... O-O {[%clk 0:02:04.5]} 16. e5 {[%clk 0:01:39.4]} 16... Nh5 {[%clk
0:01:53]} 17. Qf3 {[%clk 0:01:25.8]} 17... f6 {[%clk 0:01:49.6]} 18. g4 {[%clk
0:01:17.4]} 18... Nxf4 {[%clk 0:01:43.9]} 19. Qxf4 {[%clk 0:01:15.4]} 19... fxe5
{[%clk 0:01:44.5]} 20. Qe3 {[%clk 0:01:13]} 20... exd4 {[%clk 0:01:43.9]} 21.
Bxd4 {[%clk 0:01:10.6]} 21... e5 {[%clk 0:01:44.2]} 22. Bxe5 {[%clk 0:00:53.1]}
22... Bxe5 {[%clk 0:01:42.7]} 23. Nf3 {[%clk 0:00:08.4]} 23... Bxb2 {[%clk
0:01:32.8]} 24. O-O {[%clk 0:00:08.9]} 24... Rae8 {[%clk 0:01:29.3]} 25. Qh6
{[%clk 0:00:07.1]} 25... Bxa1 {[%clk 0:01:20.5]} 26. Ng5 {[%clk 0:00:07]} 26...
Qc5+ {[%clk 0:01:10]} 27. Kg2 {[%clk 0:00:05.9]} 27... Re2+ {[%clk 0:00:58.3]}
28. Kg3 {[%clk 0:00:06.4]} 28... Qe3+ {[%clk 0:00:57.2]} 29. Rf3 {[%clk
0:00:05.4]} 29... Be5+ {[%clk 0:00:54.1]} 0-1

[Event "Early-Titled-Tuesday-Blitz-November-28-2023"]
[Site "Chess.com"]
[Date "2023.11.28"]
[Round "5"]
[White "vugarrasulov"]
[Black "Nikolakis2014"]
[Result "1-0"]
[WhiteElo "2925"]
[BlackElo "2780"]
[TimeControl "180+1"]
[EndTime "8:56:59 PST"]
[Termination "vugarrasulov won by resignation"]

1. e4 {[%clk 0:03:00.9]} 1... c5 {[%clk 0:02:59.6]} 2. Nf3 {[%clk 0:03:01]} 2...
d6 {[%clk 0:02:58.8]} 3. d4 {[%clk 0:03:00.2]} 3... cxd4 {[%clk 0:02:57.8]} 4.
Qxd4 {[%clk 0:03:01.1]} 4... Nc6 {[%clk 0:02:56.8]} 5. Qe3 {[%clk 0:03:01.1]}
5... Nf6 {[%clk 0:02:56.4]} 6. h3 {[%clk 0:02:58.2]} 6... g6 {[%clk 0:02:56.5]}
7. c4 {[%clk 0:02:58.1]} 7... Bg7 {[%clk 0:02:56.9]} 8. Nc3 {[%clk 0:02:58.7]}
8... O-O {[%clk 0:02:57.2]} 9. Be2 {[%clk 0:02:59.1]} 9... Be6 {[%clk
0:02:57.2]} 10. O-O {[%clk 0:02:59.1]} 10... Rc8 {[%clk 0:02:57.3]} 11. Bd2
{[%clk 0:02:52.5]} 11... Nd7 {[%clk 0:02:56.9]} 12. Rac1 {[%clk 0:02:48.5]}
12... Nc5 {[%clk 0:02:53.9]} 13. b3 {[%clk 0:02:47.2]} 13... a6 {[%clk 0:02:48]}
14. Rfd1 {[%clk 0:02:46.3]} 14... h6 {[%clk 0:02:42.8]} 15. Nd5 {[%clk
0:02:40.1]} 15... a5 {[%clk 0:02:13.1]} 16. Bc3 {[%clk 0:02:32.6]} 16... Bxc3
{[%clk 0:01:58.6]} 17. Nxc3 {[%clk 0:02:31]} 17... Kh7 {[%clk 0:01:44]} 18. e5
{[%clk 0:02:31.4]} 18... a4 {[%clk 0:01:28]} 19. Nb5 {[%clk 0:02:20.6]} 19...
axb3 {[%clk 0:01:24.4]} 20. axb3 {[%clk 0:02:21.5]} 20... Qb6 {[%clk 0:01:24]}
21. exd6 {[%clk 0:02:18.6]} 21... exd6 {[%clk 0:01:24.2]} 22. Nxd6 {[%clk
0:02:08.4]} 22... Rcd8 {[%clk 0:01:13.7]} 23. Ne4 {[%clk 0:02:05.7]} 23... Nd7
{[%clk 0:01:04.3]} 24. Qc3 {[%clk 0:01:52.3]} 24... Bf5 {[%clk 0:00:56.2]} 25.
Nd6 {[%clk 0:01:37.3]} 25... Be6 {[%clk 0:00:53.2]} 26. Ne4 {[%clk 0:01:35.8]}
26... Bf5 {[%clk 0:00:52.7]} 27. Rxd7 {[%clk 0:01:30.1]} 27... Bxe4 {[%clk
0:00:51.9]} 28. Rcd1 {[%clk 0:01:29.9]} 28... Rde8 {[%clk 0:00:47.3]} 29. c5
{[%clk 0:01:25.5]} 29... Qa5 {[%clk 0:00:43.6]} 30. Qf6 {[%clk 0:01:17.5]} 30...
Nd8 {[%clk 0:00:19.9]} 31. Bc4 {[%clk 0:01:11.7]} 31... Kg8 {[%clk 0:00:14]} 32.
Ne5 {[%clk 0:01:05.7]} 32... Rxe5 {[%clk 0:00:10.1]} 33. Rxd8 {[%clk 0:01:01.7]}
33... Rf5 {[%clk 0:00:08.2]} 34. Bxf7+ {[%clk 0:00:59.9]} 1-0

[Event "Early-Titled-Tuesday-Blitz-November-28-2023"]
[Site "Chess.com"]
[Date "2023.11.28"]
[Round "5"]
[White "spotbet"]
[Black "betta2004"]
[Result "1-0"]
[WhiteElo "2440"]
[BlackElo "2572"]
[TimeControl "180+1"]
[EndTime "8:57:06 PST"]
[Termination "spotbet won by resignation"]

1. e4 {[%clk 0:02:57.8]} 1... e5 {[%clk 0:02:47.3]} 2. f4 {[%clk 0:02:51.8]}
2... exf4 {[%clk 0:02:45]} 3. Bc4 {[%clk 0:02:51.6]} 3... Qh4+ {[%clk
0:02:43.3]} 4. Kf1 {[%clk 0:02:51.5]} 4... Nc6 {[%clk 0:02:43.5]} 5. Nf3 {[%clk
0:02:50.5]} 5... Qh5 {[%clk 0:02:43]} 6. Nc3 {[%clk 0:02:51.1]} 6... Bc5 {[%clk
0:02:42.6]} 7. Nd5 {[%clk 0:02:50.6]} 7... Bb6 {[%clk 0:02:39.1]} 8. d4 {[%clk
0:02:49]} 8... Nge7 {[%clk 0:02:37.4]} 9. Nxf4 {[%clk 0:02:47.6]} 9... Qh6
{[%clk 0:02:29.4]} 10. c3 {[%clk 0:02:26.1]} 10... g5 {[%clk 0:02:23.3]} 11. Nd5
{[%clk 0:02:14.4]} 11... f6 {[%clk 0:02:20.6]} 12. h4 {[%clk 0:02:02.6]} 12...
Nxd5 {[%clk 0:02:16.4]} 13. exd5 {[%clk 0:02:00.9]} 13... Ne7 {[%clk 0:02:13.1]}
14. d6 {[%clk 0:01:58.5]} 14... cxd6 {[%clk 0:02:12.8]} 15. Rh2 {[%clk
0:01:52.4]} 15... d5 {[%clk 0:02:07.8]} 16. hxg5 {[%clk 0:01:52.5]} 16... Qg6
{[%clk 0:02:07.9]} 17. Bd3 {[%clk 0:01:49.3]} 17... Qf7 {[%clk 0:02:08.2]} 18.
gxf6 {[%clk 0:01:47]} 18... Qxf6 {[%clk 0:02:08.3]} 19. Bg5 {[%clk 0:01:45.4]}
19... Qd6 {[%clk 0:02:07.8]} 20. Ne5 {[%clk 0:01:41.2]} 20... O-O+ {[%clk
0:02:04]} 21. Kg1 {[%clk 0:01:33.4]} 21... Qxe5 {[%clk 0:01:55.6]} 22. Bxh7+
{[%clk 0:01:33.4]} 22... Kf7 {[%clk 0:01:39.2]} 23. Qh5+ {[%clk 0:01:31.2]}
23... Ke6 {[%clk 0:01:30.3]} 24. Qh6+ {[%clk 0:01:28.7]} 24... Rf6 {[%clk
0:01:25.9]} 25. Bxf6 {[%clk 0:01:26.2]} 25... Qxf6 {[%clk 0:01:26.8]} 26. Re1+
{[%clk 0:01:25.7]} 26... Kf7 {[%clk 0:01:26.8]} 27. Rf1 {[%clk 0:01:17.2]} 27...
Qxf1+ {[%clk 0:01:26.5]} 28. Kxf1 {[%clk 0:01:17.5]} 28... d6 {[%clk 0:01:25]}
29. Qh5+ {[%clk 0:01:13.4]} 29... Ke6 {[%clk 0:01:10.7]} 30. Qh3+ {[%clk
0:01:12.3]} 30... Kf7 {[%clk 0:01:09.4]} 31. Qf3+ {[%clk 0:01:08.2]} 31... Ke8
{[%clk 0:01:08]} 32. Rh6 {[%clk 0:01:00.3]} 32... Bc7 {[%clk 0:00:48.1]} 33. Bd3
{[%clk 0:01:00]} 33... a6 {[%clk 0:00:43]} 34. Rh8+ {[%clk 0:00:59.4]} 34... Kd7
{[%clk 0:00:43.2]} 35. Bf5+ {[%clk 0:00:59.3]} 35... Kc6 {[%clk 0:00:43.3]} 36.
Bxc8 {[%clk 0:00:59.1]} 36... Nxc8 {[%clk 0:00:42.4]} 37. c4 {[%clk 0:00:58]}
37... Kb6 {[%clk 0:00:33.3]} 38. Qxd5 {[%clk 0:00:51.7]} 38... Ne7 {[%clk
0:00:33.6]} 39. c5+ {[%clk 0:00:51.8]} 39... Ka5 {[%clk 0:00:30.6]} 40. b4+
{[%clk 0:00:49.4]} 40... Kb5 {[%clk 0:00:30.9]} 41. a4+ {[%clk 0:00:48.2]} 41...
Kxb4 {[%clk 0:00:31.4]} 42. Qxb7+ {[%clk 0:00:48.2]} 1-0

[Event "Early-Titled-Tuesday-Blitz-November-28-2023"]
[Site "Chess.com"]
[Date "2023.11.28"]
[Round "5"]
[White "MikeSailer"]
[Black "Lion-Al-Messi"]
[Result "0-1"]
[WhiteElo "2063"]
[BlackElo "2641"]
[TimeControl "180+1"]
[EndTime "8:57:11 PST"]
[Termination "Lion-Al-Messi won on time"]

1. d4 {[%clk 0:03:00.1]} 1... Nf6 {[%clk 0:02:59]} 2. Bg5 {[%clk 0:02:57]} 2...
b6 {[%clk 0:02:56.9]} 3. Nf3 {[%clk 0:02:55]} 3... Bb7 {[%clk 0:02:57]} 4. e3
{[%clk 0:02:55.6]} 4... e6 {[%clk 0:02:53.4]} 5. Nbd2 {[%clk 0:02:52.1]} 5... h6
{[%clk 0:02:53.4]} 6. Bh4 {[%clk 0:02:52]} 6... g5 {[%clk 0:02:53.1]} 7. Bg3
{[%clk 0:02:52.1]} 7... c5 {[%clk 0:02:52.4]} 8. c3 {[%clk 0:02:51.2]} 8... Bg7
{[%clk 0:02:52.3]} 9. h3 {[%clk 0:02:47.6]} 9... Nc6 {[%clk 0:02:51.9]} 10. Bd3
{[%clk 0:02:45.5]} 10... Qe7 {[%clk 0:02:46.7]} 11. Qe2 {[%clk 0:02:30.1]} 11...
d6 {[%clk 0:02:45.6]} 12. Ba6 {[%clk 0:02:24.7]} 12... Bxa6 {[%clk 0:02:42.5]}
13. Qxa6 {[%clk 0:02:23.8]} 13... O-O {[%clk 0:02:43.4]} 14. O-O {[%clk
0:02:19.7]} 14... Nd5 {[%clk 0:02:41.7]} 15. e4 {[%clk 0:01:55.6]} 15... Nc7
{[%clk 0:02:40.7]} 16. Qd3 {[%clk 0:01:54.2]} 16... d5 {[%clk 0:02:35.8]} 17. e5
{[%clk 0:01:26.6]} 17... Rac8 {[%clk 0:02:33.5]} 18. Nh2 {[%clk 0:01:21.1]}
18... cxd4 {[%clk 0:02:32.8]} 19. cxd4 {[%clk 0:01:20.5]} 19... Nb4 {[%clk
0:02:33]} 20. Qb3 {[%clk 0:01:10.6]} 20... Nb5 {[%clk 0:02:11.3]} 21. a3 {[%clk
0:00:56.2]} 21... Nxd4 {[%clk 0:02:01.1]} 22. Qxb4 {[%clk 0:00:55.6]} 22... Qxb4
{[%clk 0:02:02]} 23. axb4 {[%clk 0:00:55.6]} 23... Ne2+ {[%clk 0:02:02.7]} 24.
Kh1 {[%clk 0:00:55.2]} 24... Nxg3+ {[%clk 0:02:03.6]} 25. fxg3 {[%clk
0:00:55.3]} 25... Bxe5 {[%clk 0:02:04.5]} 26. Ng4 {[%clk 0:00:43.6]} 26... Bxb2
{[%clk 0:02:00.4]} 27. Rxa7 {[%clk 0:00:43.5]} 27... Kg7 {[%clk 0:01:54.7]} 28.
Nf3 {[%clk 0:00:31.8]} 28... Ra8 {[%clk 0:01:48.6]} 29. Rb7 {[%clk 0:00:29.5]}
29... Rab8 {[%clk 0:01:48.9]} 30. Ra7 {[%clk 0:00:29.6]} 30... Ra8 {[%clk
0:01:49.3]} 31. Rb7 {[%clk 0:00:30.1]} 31... Rab8 {[%clk 0:01:47.5]} 32. Ra7
{[%clk 0:00:22.7]} 32... h5 {[%clk 0:01:29.8]} 33. Nge5 {[%clk 0:00:22.2]} 33...
Kg8 {[%clk 0:01:28.5]} 34. Nd7 {[%clk 0:00:21.5]} 34... Ra8 {[%clk 0:01:28.3]}
35. Rb7 {[%clk 0:00:11.4]} 35... Rfd8 {[%clk 0:01:28.4]} 36. Nxg5 {[%clk
0:00:10.4]} 36... Ra1 {[%clk 0:01:24.6]} 37. Rxa1 {[%clk 0:00:09.3]} 37... Bxa1
{[%clk 0:01:25.5]} 38. Nf6+ {[%clk 0:00:07.8]} 38... Bxf6 {[%clk 0:01:24.6]} 39.
Nxf7 {[%clk 0:00:07.4]} 39... Ra8 {[%clk 0:01:16.7]} 40. Nd6 {[%clk 0:00:06.5]}
40... d4 {[%clk 0:01:14.2]} 41. Ne4 {[%clk 0:00:02.9]} 41... Be5 {[%clk
0:01:14.6]} 42. Kh2 {[%clk 0:00:03.4]} 42... h4 {[%clk 0:01:14.8]} 0-1

[Event "Early-Titled-Tuesday-Blitz-November-28-2023"]
[Site "Chess.com"]
[Date "2023.11.28"]
[Round "5"]
[White "Savagelittlemole"]
[Black "GoValya"]
[Result "1-0"]
[WhiteElo "2483"]
[BlackElo "2221"]
[TimeControl "180+1"]
[EndTime "8:57:12 PST"]
[Termination "Savagelittlemole won by resignation"]

1. e4 {[%clk 0:03:00.9]} 1... e6 {[%clk 0:02:59.4]} 2. d4 {[%clk 0:03:00.5]}
2... d5 {[%clk 0:02:59.1]} 3. Nd2 {[%clk 0:03:01.2]} 3... c5 {[%clk 0:02:58.4]}
4. exd5 {[%clk 0:03:00.9]} 4... exd5 {[%clk 0:02:58.1]} 5. Ngf3 {[%clk
0:03:01.1]} 5... Nf6 {[%clk 0:02:57.8]} 6. Bb5+ {[%clk 0:03:00.8]} 6... Bd7
{[%clk 0:02:54]} 7. Qe2+ {[%clk 0:03:00.3]} 7... Be7 {[%clk 0:02:53.4]} 8. O-O
{[%clk 0:02:58.6]} 8... O-O {[%clk 0:02:52.5]} 9. dxc5 {[%clk 0:02:53.5]} 9...
Bxc5 {[%clk 0:02:48.9]} 10. Nb3 {[%clk 0:02:53.7]} 10... Bb6 {[%clk 0:02:28.7]}
11. Bxd7 {[%clk 0:02:52.4]} 11... Nbxd7 {[%clk 0:02:28.3]} 12. c3 {[%clk
0:02:52.8]} 12... Ne4 {[%clk 0:02:14.2]} 13. Be3 {[%clk 0:02:46.6]} 13... Re8
{[%clk 0:02:09.9]} 14. Rfe1 {[%clk 0:02:38.9]} 14... Bxe3 {[%clk 0:02:04.2]} 15.
Qxe3 {[%clk 0:02:39.8]} 15... Nb6 {[%clk 0:01:55.8]} 16. Nfd2 {[%clk 0:02:03.6]}
16... Nxd2 {[%clk 0:01:47.8]} 17. Qxd2 {[%clk 0:01:50.4]} 17... Rxe1+ {[%clk
0:01:30.4]} 18. Rxe1 {[%clk 0:01:51.3]} 18... Nc4 {[%clk 0:01:28.9]} 19. Qe2
{[%clk 0:01:47]} 19... h6 {[%clk 0:01:22.1]} 20. h3 {[%clk 0:01:45.9]} 20... Qb6
{[%clk 0:00:55.1]} 21. Rd1 {[%clk 0:01:35.1]} 21... Rd8 {[%clk 0:00:43.1]} 22.
Rd4 {[%clk 0:01:35]} 22... a5 {[%clk 0:00:38.4]} 23. Rg4 {[%clk 0:00:50.3]}
23... a4 {[%clk 0:00:33]} 24. Nd4 {[%clk 0:00:50.7]} 24... Qxb2 {[%clk
0:00:20.8]} 25. Qe7 {[%clk 0:00:50.1]} 25... Rf8 {[%clk 0:00:14.8]} 26. Ne6
{[%clk 0:00:37]} 26... Qc1+ {[%clk 0:00:09.8]} 27. Kh2 {[%clk 0:00:36]} 27...
Qxc3 {[%clk 0:00:08.7]} 28. Qxf8+ {[%clk 0:00:35.3]} 28... Kh7 {[%clk
0:00:07.8]} 29. Rxg7+ {[%clk 0:00:35]} 1-0

[Event "Early-Titled-Tuesday-Blitz-November-28-2023"]
[Site "Chess.com"]
[Date "2023.11.28"]
[Round "5"]
[White "Khromkin"]
[Black "Wizard_97"]
[Result "0-1"]
[WhiteElo "2487"]
[BlackElo "2647"]
[TimeControl "180+1"]
[EndTime "8:57:13 PST"]
[Termination "Wizard_97 won on time"]

1. d4 {[%clk 0:02:58.9]} 1... Nf6 {[%clk 0:03:00]} 2. c4 {[%clk 0:02:59.5]} 2...
e6 {[%clk 0:03:00.4]} 3. Nf3 {[%clk 0:03:00.1]} 3... b6 {[%clk 0:03:00.5]} 4. g3
{[%clk 0:02:59.4]} 4... Bb7 {[%clk 0:03:00.6]} 5. Bg2 {[%clk 0:02:59.7]} 5...
Be7 {[%clk 0:03:01.3]} 6. O-O {[%clk 0:03:00.3]} 6... O-O {[%clk 0:03:02]} 7.
Qc2 {[%clk 0:03:00.8]} 7... d5 {[%clk 0:03:01.4]} 8. Ne5 {[%clk 0:02:59.6]} 8...
Na6 {[%clk 0:02:59.9]} 9. Nc3 {[%clk 0:02:41.6]} 9... c5 {[%clk 0:02:46.6]} 10.
cxd5 {[%clk 0:02:30.6]} 10... exd5 {[%clk 0:02:42.5]} 11. dxc5 {[%clk
0:02:26.3]} 11... Nxc5 {[%clk 0:02:41]} 12. Rd1 {[%clk 0:02:24.1]} 12... Rc8
{[%clk 0:02:35.6]} 13. Be3 {[%clk 0:02:06.2]} 13... Nce4 {[%clk 0:02:33.7]} 14.
Bd4 {[%clk 0:02:02.6]} 14... Nxc3 {[%clk 0:02:33.4]} 15. Bxc3 {[%clk 0:01:53.8]}
15... Qc7 {[%clk 0:02:26.3]} 16. Qf5 {[%clk 0:01:44.1]} 16... Rfd8 {[%clk
0:02:04.6]} 17. Ng4 {[%clk 0:01:36.8]} 17... Nxg4 {[%clk 0:01:57]} 18. Qxg4
{[%clk 0:01:36.8]} 18... Bf8 {[%clk 0:01:57]} 19. Bf6 {[%clk 0:01:23.3]} 19...
Re8 {[%clk 0:01:47.8]} 20. Bxd5 {[%clk 0:01:15.7]} 20... Bxd5 {[%clk 0:01:47.5]}
21. Rxd5 {[%clk 0:01:15.9]} 21... Qc6 {[%clk 0:01:45.4]} 22. Rf5 {[%clk
0:01:03.6]} 22... Re4 {[%clk 0:01:43.7]} 23. Rf4 {[%clk 0:00:51.3]} 23... Rxf4
{[%clk 0:01:32.7]} 24. gxf4 {[%clk 0:00:51.7]} 24... h5 {[%clk 0:01:32.9]} 25.
Qxh5 {[%clk 0:00:39.2]} 25... Qxf6 {[%clk 0:01:31.6]} 26. e3 {[%clk 0:00:39.8]}
26... Qxb2 {[%clk 0:01:29.2]} 27. Rd1 {[%clk 0:00:37.8]} 27... Rc1 {[%clk
0:01:29.3]} 28. Rxc1 {[%clk 0:00:35.2]} 28... Qxc1+ {[%clk 0:01:30.2]} 29. Kg2
{[%clk 0:00:35.9]} 29... Qc6+ {[%clk 0:01:30.4]} 30. Kg3 {[%clk 0:00:33.3]}
30... Qg6+ {[%clk 0:01:27.5]} 31. Qxg6 {[%clk 0:00:33.8]} 31... fxg6 {[%clk
0:01:28.4]} 32. Kf3 {[%clk 0:00:32.4]} 32... b5 {[%clk 0:01:28.7]} 33. Ke4
{[%clk 0:00:33.3]} 33... b4 {[%clk 0:01:29.1]} 34. Kd5 {[%clk 0:00:29.7]} 34...
a5 {[%clk 0:01:29.5]} 35. h3 {[%clk 0:00:25.7]} 35... a4 {[%clk 0:01:29.7]} 36.
Kc4 {[%clk 0:00:24.6]} 36... Kf7 {[%clk 0:01:30.2]} 37. e4 {[%clk 0:00:22.4]}
37... Kf6 {[%clk 0:01:30.3]} 38. h4 {[%clk 0:00:21.2]} 38... Ke6 {[%clk
0:01:29.8]} 39. f3 {[%clk 0:00:19.8]} 39... Kf6 {[%clk 0:01:30]} 40. Kd3 {[%clk
0:00:13.5]} 40... Kf7 {[%clk 0:01:27.9]} 41. Kc4 {[%clk 0:00:13.3]} 41... Ke8
{[%clk 0:01:28.5]} 42. Kd3 {[%clk 0:00:05.8]} 42... Bd6 {[%clk 0:01:28.2]} 43.
Kc4 {[%clk 0:00:06.7]} 43... Kd7 {[%clk 0:01:26.3]} 0-1

[Event "Early-Titled-Tuesday-Blitz-November-28-2023"]
[Site "Chess.com"]
[Date "2023.11.28"]
[Round "5"]
[White "deribas12345"]
[Black "GMJustin"]
[Result "1-0"]
[WhiteElo "2541"]
[BlackElo "2284"]
[TimeControl "180+1"]
[EndTime "8:57:13 PST"]
[Termination "deribas12345 won on time"]

1. d4 {[%clk 0:03:00.9]} 1... Nf6 {[%clk 0:02:20.7]} 2. c4 {[%clk 0:02:58.9]}
2... g6 {[%clk 0:02:20.4]} 3. Nc3 {[%clk 0:02:58.7]} 3... Bg7 {[%clk 0:02:16.5]}
4. e4 {[%clk 0:02:58.7]} 4... d6 {[%clk 0:02:10.3]} 5. Nge2 {[%clk 0:02:57.6]}
5... O-O {[%clk 0:01:51.9]} 6. Ng3 {[%clk 0:02:55.9]} 6... c5 {[%clk 0:01:45.4]}
7. d5 {[%clk 0:02:52]} 7... e6 {[%clk 0:01:43.2]} 8. Be2 {[%clk 0:02:48.9]} 8...
exd5 {[%clk 0:01:39]} 9. cxd5 {[%clk 0:02:43.8]} 9... Na6 {[%clk 0:01:32.6]} 10.
O-O {[%clk 0:02:41.9]} 10... Nc7 {[%clk 0:01:30.1]} 11. a4 {[%clk 0:02:39.8]}
11... Re8 {[%clk 0:01:17]} 12. f4 {[%clk 0:02:26.4]} 12... h5 {[%clk 0:01:10.7]}
13. e5 {[%clk 0:02:22]} 13... dxe5 {[%clk 0:01:01.2]} 14. d6 {[%clk 0:02:20.8]}
14... exf4 {[%clk 0:00:51.1]} 15. dxc7 {[%clk 0:02:06.1]} 15... Qxd1 {[%clk
0:00:45.4]} 16. Rxd1 {[%clk 0:02:07]} 16... fxg3 {[%clk 0:00:38.2]} 17. Bg5
{[%clk 0:01:59.5]} 17... Ng4 {[%clk 0:00:23.5]} 18. Bb5 {[%clk 0:00:50.7]} 18...
gxh2+ {[%clk 0:00:16.4]} 19. Kh1 {[%clk 0:00:47.7]} 19... Nf2+ {[%clk
0:00:10.6]} 20. Kxh2 {[%clk 0:00:46.3]} 20... Nxd1 {[%clk 0:00:10.6]} 21. Rxd1
{[%clk 0:00:38.5]} 21... Be5+ {[%clk 0:00:10.1]} 22. g3 {[%clk 0:00:38.7]} 22...
Bg4 {[%clk 0:00:02.4]} 23. Rd8 {[%clk 0:00:34.2]} 23... Bxc7 {[%clk 0:00:00.6]}
24. Rxe8+ {[%clk 0:00:34.5]} 1-0

[Event "Early-Titled-Tuesday-Blitz-November-28-2023"]
[Site "Chess.com"]
[Date "2023.11.28"]
[Round "5"]
[White "luckyswitchback"]
[Black "Sychev_on_YouTube"]
[Result "0-1"]
[WhiteElo "2786"]
[BlackElo "2926"]
[TimeControl "180+1"]
[EndTime "8:57:14 PST"]
[Termination "Sychev_on_YouTube won by resignation"]

1. e4 {[%clk 0:03:00.9]} 1... e5 {[%clk 0:03:00.2]} 2. Nf3 {[%clk 0:03:00.9]}
2... Nc6 {[%clk 0:03:00.7]} 3. Bb5 {[%clk 0:03:01.2]} 3... a6 {[%clk 0:03:01.1]}
4. Ba4 {[%clk 0:03:01.7]} 4... f5 {[%clk 0:03:01.1]} 5. d4 {[%clk 0:02:57.5]}
5... exd4 {[%clk 0:03:00.9]} 6. Nxd4 {[%clk 0:02:54.1]} 6... Nxd4 {[%clk
0:02:58.3]} 7. Qxd4 {[%clk 0:02:55]} 7... c5 {[%clk 0:02:56.3]} 8. Qe5+ {[%clk
0:02:49.4]} 8... Qe7 {[%clk 0:02:56]} 9. Qxe7+ {[%clk 0:02:31.2]} 9... Bxe7
{[%clk 0:02:56.9]} 10. c4 {[%clk 0:02:31.3]} 10... fxe4 {[%clk 0:02:54.5]} 11.
Nc3 {[%clk 0:02:31.7]} 11... Nf6 {[%clk 0:02:54.1]} 12. Bc2 {[%clk 0:02:31.5]}
12... b5 {[%clk 0:02:52.3]} 13. cxb5 {[%clk 0:02:18.9]} 13... axb5 {[%clk
0:02:40]} 14. Nxe4 {[%clk 0:02:16]} 14... Bb7 {[%clk 0:02:34.1]} 15. Nxf6+
{[%clk 0:02:15.9]} 15... Bxf6 {[%clk 0:02:34.2]} 16. O-O {[%clk 0:02:16.6]}
16... O-O {[%clk 0:02:33.9]} 17. a4 {[%clk 0:02:10.4]} 17... Bc6 {[%clk
0:02:19]} 18. Be3 {[%clk 0:02:03.1]} 18... bxa4 {[%clk 0:02:11.3]} 19. Bxc5
{[%clk 0:01:54.8]} 19... Rfb8 {[%clk 0:02:09.9]} 20. Ba3 {[%clk 0:01:31]} 20...
Bxb2 {[%clk 0:02:07.7]} 21. Ra2 {[%clk 0:01:28.7]} 21... Bxa3 {[%clk 0:01:58.6]}
22. Rxa3 {[%clk 0:01:29.6]} 22... Rb2 {[%clk 0:01:57.8]} 23. Bd3 {[%clk
0:01:30.3]} 23... Rf8 {[%clk 0:01:31.8]} 24. f3 {[%clk 0:01:26.2]} 24... Rfb8
{[%clk 0:01:27.1]} 25. Rc1 {[%clk 0:01:17.3]} 25... g6 {[%clk 0:01:13.1]} 26.
Rxc6 {[%clk 0:00:53.1]} 26... dxc6 {[%clk 0:01:11.1]} 27. Rxa4 {[%clk
0:00:53.3]} 27... Rd8 {[%clk 0:01:03.9]} 28. Bc4+ {[%clk 0:00:51.6]} 28... Kh8
{[%clk 0:01:03.2]} 29. Ra1 {[%clk 0:00:50.5]} 29... Rdd2 {[%clk 0:00:58.9]} 30.
Bf1 {[%clk 0:00:51.1]} 30... c5 {[%clk 0:00:54.6]} 31. Rc1 {[%clk 0:00:42.2]}
31... Rbc2 {[%clk 0:00:51.8]} 32. Re1 {[%clk 0:00:39.6]} 32... c4 {[%clk
0:00:50.8]} 33. h4 {[%clk 0:00:40.3]} 33... Rd4 {[%clk 0:00:40.6]} 34. h5 {[%clk
0:00:37.2]} 34... gxh5 {[%clk 0:00:39.9]} 35. Kh2 {[%clk 0:00:37.8]} 35... h4
{[%clk 0:00:39.2]} 36. Kh3 {[%clk 0:00:37.5]} 36... c3 {[%clk 0:00:36.3]} 37.
Ra1 {[%clk 0:00:31.5]} 37... Rcd2 {[%clk 0:00:34.5]} 0-1